[Event "FIDE WYCC Open U14 2023"]
[Site "Montesilvano"]
[Date "2023.11.20"]
[Round "7.8"]
[White "Perossa, Nicolas"]
[Black "Bolat, Inayat"]
[Result "*"]
[ECO "C50"]
[WhiteElo "2330"]
[BlackElo "2088"]
[Annotator "RC"]
[PlyCount "81"]
[EventDate "2023.11.13"]
[EventType "swiss"]
[EventCountry "ITA"]
[SourceTitle "playchess.com"]
[Source "ChessBase"]
[SourceQuality "1"]
[TimeControl "40/5400+30:1800+30"]

1. e4 {[%emt 0:02:01]} e5 {[%emt 0:00:17]} 2. Nf3 {[%emt 0:00:06]} Nc6 {[%emt 0:00:15]} 3. Bc4 {[%emt 0:00:09]} Nf6 {[%emt 0:00:21]} 4. d3 {[%emt 0:00:06]} Bc5 5. O-O {[%emt 0:00:00]} O-O {[%emt 0:01:13]} 6. Nbd2 d6 {[%emt 0:00:40]} 7. c3 {[%emt 0:00:26]} a5 {[%emt 0:00:18]} 8. h3 {[%emt 0:00:31]} h6 {[%emt 0:01:23]} 9. Re1 {[%emt 0:00:09]} Be6 {[%emt 0:01:03]} 10. Bb5 {[%emt 0:00:02]} Ba7 {[%emt 0:00:11]} 11. Nf1 {[%emt 0:01:02]} Ne7 {[%emt 0:01:34]} 12. Ba4 {[%emt 0:05:25]} Ng6 {[%emt 0:01:40]} 13. Ng3 {[%emt 0:15:46]} c6 {[%emt 0:05:49]} 14. Bc2 {[%emt 0:03:05]} b5 {[%emt 0:01:08]} 15. d4 {[%emt 0:03:51]} b4 {[%emt 0:08:08]} 16. Be3 {[%emt 0:05:07]} Qc7 {[%emt 0:04:34]} 17. Qd2 {[%emt 0:15:19]} Rab8 {[%emt 0:06:38]} 18. Nf5 {[%emt 0:22:22]} bxc3 {[%emt 0:04:00]} 19. bxc3 {[%emt 0:00:44]} Rb2 {[%emt 0:05:20]} 20. Qc1 {[%emt 0:03:15]} Rfb8 {[%emt 0:24:15]} 21. Bb3 {[%emt 0:03:07]} Bxb3 {[%emt 0:00:18]} 22. Qxb2 {[%emt 0:05:30]} Bd5 {[%emt 0:00:17]} 23. Qa3 {[%emt 0:00:10]} Bxe4 {[%emt 0:05:58]} 24. Qxd6 {[%emt 0:00:06]} Qxd6 {[%emt 0:00:30]} 25. Nxd6 {[%emt 0:00:03]} Bxf3 {[%emt 0:02:29]} 26. dxe5 {[%emt 0:09:33]} Bxe3 {[%emt 0:00:27]} 27. Rxe3 {[%emt 0:00:01]} Nd5 {[%emt 0:01:02]} 28. Rxf3 {[%emt 0:00:02]} Nxe5 {[%emt 0:00:09]} 29. Rg3 {[%emt 0:02:58]} Rb2 {[%emt 0:01:53]} 30. c4 {[%emt 0:00:48]} Nf4 {[%emt 0:00:29]} 31. Ra3 {[%emt 0:01:21]} Rd2 {[%emt 0:03:45]} 32. Rxa5 {[%emt 0:02:18]} Ned3 {[%emt 0:02:10]} 33. Rf1 {[%emt 0:00:38]} Ne2+ {[%emt 0:02:41]} 34. Kh2 {[%emt 0:00:07]} Nc3 {[%emt 0:00:20]} 35. Ra8+ {[%emt 0:00:40]} Kh7 {[%emt 0:00:04]} 36. Nxf7 {[%emt 0:00:58]} Kg6 {[%emt 0:01:46]} 37. Nh8+ {[%emt 0:00:33]} Kf5 {[%emt 0:00:55]} 38. a4 {[%emt 0:00:27]} Ke4 {[%emt 0:01:39]} 39. Nf7 {[%emt 0:00:27]} Nd1 {[%emt 0:01:41]} 40. Re8+ {[%emt 0:00:00]} Kf4 {[%emt 0:00:00]} 41. Rd8 {[%emt 0:00:55]} *

[Event "FIDE WYCC Open U14 2023"]
[Site "Montesilvano"]
[Date "2023.11.20"]
[Round "7.9"]
[White "Artemov, Andriy"]
[Black "Cieslak, Patryk"]
[Result "0-1"]
[ECO "E04"]
[WhiteElo "1779"]
[BlackElo "2284"]
[Annotator "RC"]
[PlyCount "128"]
[EventDate "2023.11.13"]
[EventType "swiss"]
[EventCountry "ITA"]
[SourceTitle "playchess.com"]
[Source "ChessBase"]
[SourceQuality "1"]
[TimeControl "40/5400+30:1800+30"]

1. d4 {[%emt 0:00:12]} Nf6 {[%emt 0:00:03]} 2. c4 {[%emt 0:00:11]} e6 {[%emt 0:00:02]} 3. g3 {[%emt 0:00:28]} d5 {[%emt 0:00:01]} 4. Bg2 {[%emt 0:00:13]} dxc4 {[%emt 0:00:05]} 5. Nf3 {[%emt 0:00:06]} c6 {[%emt 0:00:04]} 6. Ne5 {[%emt 0:02:02]} Bb4+ {[%emt 0:00:43]} 7. Bd2 {[%emt 0:00:07]} Be7 {[%emt 0:00:10]} 8. e3 {[%emt 0:03:09]} b5 {[%emt 0:01:37]} 9. O-O {[%emt 0:01:15]} Bb7 {[%emt 0:10:10]} 10. a4 {[%emt 0:00:23]} a6 {[%emt 0:09:39]} 11. b3 {[%emt 0:04:30]} cxb3 {[%emt 0:05:54]} 12. Qxb3 {[%emt 0:00:09]} Nfd7 {[%emt 0:06:03]} 13. Nc4 {[%emt 0:07:52]} Ra7 {[%emt 0:06:19]} 14. Na5 {[%emt 0:08:06]} Ba8 {[%emt 0:06:26]} 15. Rc1 {[%emt 0:01:46]} O-O {[%emt 0:10:55]} 16. Bxc6 {[%emt 0:05:41]} Nxc6 {[%emt 0:00:52]} 17. Nxc6 {[%emt 0:00:03]} Bxc6 {[%emt 0:00:01]} 18. Rxc6 {[%emt 0:00:01]} b4 {[%emt 0:03:43]} 19. Be1 {[%emt 0:04:08]} Rc7 {[%emt 0:04:51]} 20. Rc2 {[%emt 0:06:54]} Rxc2 {[%emt 0:03:06]} 21. Qxc2 {[%emt 0:00:03]} Qb8 {[%emt 0:00:47]} 22. Nd2 {[%emt 0:00:58]} Rc8 {[%emt 0:00:30]} 23. Qd3 {[%emt 0:07:29]} Qb7 {[%emt 0:11:13]} 24. Nb3 {[%emt 0:00:53]} h5 {[%emt 0:01:19]} 25. e4 {[%emt 0:03:28]} h4 {[%emt 0:01:07]} 26. Bd2 {[%emt 0:02:20]} Nf6 {[%emt 0:01:27]} 27. Re1 {[%emt 0:03:32]} Rd8 {[%emt 0:02:37]} 28. Bg5 {[%emt 0:03:45]} Rc8 {[%emt 0:01:01]} 29. Bd2 {[%emt 0:04:31]} hxg3 {[%emt 0:00:05]} 30. hxg3 {[%emt 0:00:06]} Rd8 {[%emt 0:00:21]} 31. f3 {[%emt 0:01:38]} Nd7 {[%emt 0:02:23]} 32. Rc1 {[%emt 0:04:05]} Rc8 {[%emt 0:03:37]} 33. Rxc8+ {[%emt 0:05:33]} Qxc8 {[%emt 0:00:01]} 34. a5 {[%emt 0:00:19]} Qc6 {[%emt 0:02:43]} 35. d5 {[%emt 0:04:15]} exd5 {[%emt 0:01:30]} 36. exd5 {[%emt 0:00:35]} Qf6 {[%emt 0:00:35]} 37. Kg2 {[%emt 0:08:43]} Bf8 {[%emt 0:03:20]} 38. f4 {[%emt 0:02:48]} Qd6 {[%emt 0:00:37]} 39. Be3 {[%emt 0:03:52]} Be7 {[%emt 0:01:48]} 40. Kf3 {[%emt 0:00:00]} Qh6 {[%emt 0:00:00]} 41. Kg2 {[%emt 0:04:04]} Qd6 {[%emt 0:05:59]} 42. Kf3 {[%emt 0:01:51]} Bd8 {[%emt 0:07:30]} 43. Qc4 {[%emt 0:02:49]} Nf6 {[%emt 0:06:47]} 44. Bc5 {[%emt 0:00:17]} Qd7 {[%emt 0:00:41]} 45. Bxb4 {[%emt 0:03:52]} Nxd5 {[%emt 0:02:50]} 46. Bd2 {[%emt 0:01:38]} Nf6 {[%emt 0:01:47]} 47. Qd4 {[%emt 0:02:19]} Qb7+ {[%emt 0:01:04]} 48. Kf2 {[%emt 0:01:20]} Qxb3 {[%emt 0:00:57]} 49. Qxd8+ {[%emt 0:00:10]} Kh7 {[%emt 0:00:01]} 50. Qd4 {[%emt 0:01:01]} Ng4+ {[%emt 0:01:09]} 51. Kg2 {[%emt 0:00:56]} Qb7+ {[%emt 0:00:18]} 52. Kh3 {[%emt 0:01:32]} f5 {[%emt 0:00:36]} 53. Qg1 {[%emt 0:01:18]} Qc6 {[%emt 0:01:04]} 54. Bb4 {[%emt 0:02:42]} Qe4 {[%emt 0:00:39]} 55. Bc3 {[%emt 0:00:33]} Qe2 {[%emt 0:01:00]} 56. Bd4 {[%emt 0:00:21]} Qd2 {[%emt 0:01:00]} 57. Bb6 {[%emt 0:00:25]} Qc2 {[%emt 0:01:16]} 58. Qh1 {[%emt 0:00:53]} Qe2 {[%emt 0:01:19]} 59. Qg1 {[%emt 0:01:37]} Nf6 {[%emt 0:00:05]} 60. Bd4 {[%emt 0:00:58]} Ne4 {[%emt 0:00:28]} 61. Be3 {[%emt 0:03:48]} Kh6 {[%emt 0:00:41]} 62. Bb6 {[%emt 0:01:53]} g5 {[%emt 0:02:44]} 63. Be3 {[%emt 0:02:00]} g4+ {[%emt 0:00:26]} 64. Kh4 {[%emt 0:00:01]} Nd2 {[%emt 0:00:18]} 0-1

[Event "FIDE WYCC Open U14 2023"]
[Site "Montesilvano"]
[Date "2023.11.20"]
[Round "7.10"]
[White "Matyassy, Lazar"]
[Black "Prokhorov, Aleksey"]
[Result "0-1"]
[ECO "B23"]
[WhiteElo "2281"]
[BlackElo "1869"]
[Annotator "RC"]
[PlyCount "104"]
[EventDate "2023.11.13"]
[EventType "swiss"]
[EventCountry "ITA"]
[SourceTitle "playchess.com"]
[Source "ChessBase"]
[SourceQuality "1"]
[TimeControl "40/5400+30:1800+30"]

1. e4 {[%emt 0:00:04]} c5 {[%emt 0:01:01]} 2. Nc3 {[%emt 0:00:09]} d6 {[%emt 0:01:00]} 3. d4 {[%emt 0:00:14]} cxd4 {[%emt 0:01:00]} 4. Qxd4 {[%emt 0:00:08]} Nc6 {[%emt 0:01:02]} 5. Qd2 {[%emt 0:00:19]} Nf6 {[%emt 0:00:57]} 6. b3 {[%emt 0:01:22]} e6 {[%emt 0:01:47]} 7. Bb2 {[%emt 0:00:07]} Be7 {[%emt 0:01:23]} 8. O-O-O {[%emt 0:00:22]} a6 {[%emt 0:00:50]} 9. f3 {[%emt 0:04:39]} b5 {[%emt 0:01:12]} 10. Kb1 {[%emt 0:00:07]} Bb7 {[%emt 0:03:22]} 11. g4 {[%emt 0:02:16]} Rc8 {[%emt 0:02:51]} 12. Nge2 {[%emt 0:06:27]} Ne5 {[%emt 0:12:25]} 13. Bg2 {[%emt 0:09:16]} Nfd7 {[%emt 0:01:21]} 14. Ng3 {[%emt 0:11:50]} Qa5 {[%emt 0:09:24]} 15. f4 {[%emt 0:20:45]} Nxg4 {[%emt 0:08:05]} 16. h3 {[%emt 0:10:56]} Ngf6 {[%emt 0:07:55]} 17. a3 {[%emt 0:04:26]} Qc7 {[%emt 0:02:41]} 18. h4 {[%emt 0:01:07]} h5 {[%emt 0:07:06]} 19. Rhe1 {[%emt 0:00:07]} Ng4 {[%emt 0:08:04]} 20. Bf3 {[%emt 0:13:00]} Bxh4 {[%emt 0:08:20]} 21. Rh1 {[%emt 0:01:02]} Bxg3 {[%emt 0:04:38]} 22. Bxg4 {[%emt 0:00:04]} Nf6 {[%emt 0:00:50]} 23. Bf3 {[%emt 0:00:36]} h4 {[%emt 0:00:41]} 24. Rdg1 {[%emt 0:05:51]} Rg8 {[%emt 0:02:07]} 25. Rxg3 {[%emt 0:01:34]} hxg3 {[%emt 0:00:12]} 26. Rg1 {[%emt 0:01:02]} Rd8 {[%emt 0:03:10]} 27. Rxg3 {[%emt 0:01:45]} d5 {[%emt 0:00:23]} 28. exd5 {[%emt 0:00:06]} Nxd5 {[%emt 0:00:15]} 29. Bxd5 {[%emt 0:01:22]} Bxd5 {[%emt 0:00:11]} 30. Qh2 {[%emt 0:01:20]} Qxf4 {[%emt 0:03:41]} 31. Nxd5 {[%emt 0:00:08]} Rxd5 {[%emt 0:00:26]} 32. Qh7 {[%emt 0:00:06]} Qxg3 {[%emt 0:00:38]} 33. Qxg8+ {[%emt 0:00:05]} Ke7 {[%emt 0:00:20]} 34. Bxg7 {[%emt 0:00:11]} Qg6 {[%emt 0:00:14]} 35. Qf8+ {[%emt 0:00:40]} Kd7 {[%emt 0:00:08]} 36. Bc3 {[%emt 0:00:06]} e5 {[%emt 0:02:59]} 37. Qb8 {[%emt 0:00:12]} Qd6 {[%emt 0:02:38]} 38. Qb7+ {[%emt 0:00:48]} Ke6 {[%emt 0:00:15]} 39. Qc8+ {[%emt 0:00:06]} Qd7 {[%emt 0:00:31]} 40. Qxa6+ {[%emt 0:00:00]} Rd6 {[%emt 0:00:00]} 41. Qa5 {[%emt 0:01:24]} Qc6 {[%emt 0:05:50]} 42. Bb4 {[%emt 0:02:37]} Rd7 {[%emt 0:01:13]} 43. Bf8 {[%emt 0:01:35]} e4 {[%emt 0:03:25]} 44. Qe1 {[%emt 0:00:34]} Qd5 {[%emt 0:01:04]} 45. Qh4 {[%emt 0:00:37]} Qd1+ {[%emt 0:00:21]} 46. Kb2 {[%emt 0:00:02]} Qf3 {[%emt 0:00:19]} 47. Bg7 {[%emt 0:01:27]} f6 {[%emt 0:02:08]} 48. Qh8 {[%emt 0:00:14]} Rc7 {[%emt 0:01:06]} 49. Qe8+ {[%emt 0:03:57]} Kf5 {[%emt 0:00:12]} 50. Qxb5+ {[%emt 0:02:12]} Kg6 {[%emt 0:00:09]} 51. Bxf6 {[%emt 0:00:27]} Qxf6+ {[%emt 0:00:09]} 52. Kb1 {[%emt 0:00:05]} Re7 {[%emt 0:00:15]} 0-1

[Event "FIDE WYCC Open U14 2023"]
[Site "Montesilvano"]
[Date "2023.11.20"]
[Round "7.11"]
[White "Kozlovic, Jernej"]
[Black "Daaevik Wadhawan"]
[Result "1/2-1/2"]
[ECO "C79"]
[WhiteElo "2263"]
[BlackElo "1810"]
[Annotator "RC"]
[PlyCount "120"]
[EventDate "2023.11.13"]
[EventType "swiss"]
[EventCountry "ITA"]
[SourceTitle "playchess.com"]
[Source "ChessBase"]
[SourceQuality "1"]
[TimeControl "40/5400+30:1800+30"]

1. e4 {[%emt 0:00:20]} e5 {[%emt 0:00:37]} 2. Nf3 {[%emt 0:00:52]} Nc6 {[%emt 0:00:02]} 3. Bb5 {[%emt 0:00:13]} a6 {[%emt 0:00:06]} 4. Ba4 {[%emt 0:00:49]} Nf6 {[%emt 0:00:02]} 5. O-O {[%emt 0:00:27]} d6 {[%emt 0:00:02]} 6. Re1 {[%emt 0:02:29]} Bd7 {[%emt 0:00:02]} 7. c4 {[%emt 0:02:23]} g6 {[%emt 0:06:01]} 8. Nc3 {[%emt 0:05:19]} Bg7 {[%emt 0:04:26]} 9. Bxc6 {[%emt 0:00:35]} bxc6 {[%emt 0:13:25]} 10. d4 {[%emt 0:00:36]} Qe7 {[%emt 0:06:24]} 11. dxe5 {[%emt 0:01:17]} dxe5 {[%emt 0:00:28]} 12. Qc2 {[%emt 0:15:02]} O-O {[%emt 0:03:44]} 13. Na4 {[%emt 0:04:54]} Nh5 {[%emt 0:11:18]} 14. Be3 {[%emt 0:11:57]} Rfd8 {[%emt 0:02:26]} 15. Nc5 {[%emt 0:11:30]} Bg4 {[%emt 0:05:20]} 16. Nd2 {[%emt 0:01:49]} Nf4 {[%emt 0:01:50]} 17. f3 {[%emt 0:01:47]} Bh3 {[%emt 0:07:46]} 18. g3 {[%emt 0:04:59]} Ng2 {[%emt 0:02:11]} 19. Ndb3 {[%emt 0:02:21]} Nxe3 {[%emt 0:07:29]} 20. Rxe3 {[%emt 0:00:30]} Bh6 {[%emt 0:07:02]} 21. Rd3 {[%emt 0:08:22]} Rxd3 {[%emt 0:01:27]} 22. Qxd3 {[%emt 0:06:11]} Rd8 {[%emt 0:03:05]} 23. Qe2 {[%emt 0:00:08]} Bc8 {[%emt 0:01:39]} 24. Kf2 {[%emt 0:02:49]} Qg5 {[%emt 0:03:20]} 25. Rd1 {[%emt 0:09:42]} Rd6 {[%emt 0:01:50]} 26. Rd3 {[%emt 0:01:51]} Qe7 {[%emt 0:03:34]} 27. Rxd6 cxd6 {[%emt 0:00:12]} 28. Nd3 {[%emt 0:01:25]} a5 {[%emt 0:01:26]} 29. c5 {[%emt 0:02:14]} Qa7 {[%emt 0:01:17]} 30. Qe1 {[%emt 0:01:02]} Qa6 {[%emt 0:02:18]} 31. Qc3 {[%emt 0:00:57]} a4 {[%emt 0:01:03]} 32. Nbc1 {[%emt 0:00:25]} Qa7 {[%emt 0:03:46]} 33. Kg2 {[%emt 0:00:34]} Qd7 {[%emt 0:00:02]} 34. cxd6 {[%emt 0:00:26]} Be3 {[%emt 0:01:17]} 35. Nf2 {[%emt 0:00:48]} Bxc1 {[%emt 0:00:28]} 36. Qxc1 {[%emt 0:00:06]} Qxd6 {[%emt 0:00:01]} 37. Qd1 {[%emt 0:00:19]} Qxd1 {[%emt 0:01:02]} 38. Nxd1 {[%emt 0:00:01]} Be6 {[%emt 0:00:00]} 39. Nc3 {[%emt 0:00:21]} Kf8 {[%emt 0:00:01]} 40. Kf2 {[%emt 0:00:00]} Ke7 {[%emt 0:00:00]} 41. Ke3 {[%emt 0:02:45]} Bc4 {[%emt 0:03:28]} 42. Kd2 {[%emt 0:14:44]} Kd6 {[%emt 0:00:57]} 43. h4 {[%emt 0:02:51]} h5 {[%emt 0:01:32]} 44. g4 {[%emt 0:04:02]} f6 {[%emt 0:03:07]} 45. gxh5 {[%emt 0:00:34]} gxh5 {[%emt 0:00:02]} 46. a3 {[%emt 0:04:02]} Bb3 {[%emt 0:00:28]} 47. Ne2 {[%emt 0:02:09]} Kc5 {[%emt 0:06:43]} 48. Ng3 {[%emt 0:00:24]} Bf7 {[%emt 0:00:01]} 49. Kc3 {[%emt 0:02:09]} Kb5 {[%emt 0:00:21]} 50. Nf5 {[%emt 0:00:39]} Kc5 {[%emt 0:00:34]} 51. Ne3 {[%emt 0:00:48]} Bb3 {[%emt 0:02:49]} 52. Kd3 {[%emt 0:00:38]} Bf7 {[%emt 0:02:17]} 53. Kc3 {[%emt 0:00:24]} Bb3 {[%emt 0:00:05]} 54. Kd3 {[%emt 0:01:15]} Bf7 {[%emt 0:00:36]} 55. Nf5 {[%emt 0:01:20]} Bc4+ {[%emt 0:00:43]} 56. Kd2 {[%emt 0:00:42]} Be6 {[%emt 0:00:41]} 57. Ng3 {[%emt 0:01:04]} Bf7 {[%emt 0:00:04]} 58. Kc3 {[%emt 0:00:10]} Kb5 {[%emt 0:00:14]} 59. Ne2 {[%emt 0:00:44]} Bb3 {[%emt 0:01:45]} 60. Ng3 {[%emt 0:00:43]} Bf7 {[%emt 0:00:32]} 1/2-1/2

[Event "FIDE WYCC Open U14 2023"]
[Site "Montesilvano"]
[Date "2023.11.20"]
[Round "7.12"]
[White "Bharadia Yash"]
[Black "Besou, Hussain"]
[Result "1-0"]
[ECO "B12"]
[WhiteElo "2071"]
[BlackElo "2341"]
[Annotator "RC"]
[PlyCount "107"]
[EventDate "2023.11.13"]
[EventType "swiss"]
[EventCountry "ITA"]
[SourceTitle "playchess.com"]
[Source "ChessBase"]
[SourceQuality "1"]
[TimeControl "40/5400+30:1800+30"]

1. e4 {[%emt 0:00:07]} c6 {[%emt 0:00:10]} 2. d4 {[%emt 0:00:04]} d5 {[%emt 0:00:04]} 3. e5 {[%emt 0:00:07]} Bf5 {[%emt 0:00:04]} 4. h4 {[%emt 0:00:08]} h5 {[%emt 0:00:13]} 5. Bd3 {[%emt 0:00:07]} Bxd3 {[%emt 0:00:09]} 6. Qxd3 {[%emt 0:00:07]} e6 {[%emt 0:00:28]} 7. Nf3 {[%emt 0:00:22]} Qa5+ {[%emt 0:00:12]} 8. Nbd2 {[%emt 0:00:04]} Qa6 {[%emt 0:00:11]} 9. c4 {[%emt 0:00:06]} Nd7 {[%emt 0:00:52]} 10. O-O {[%emt 0:03:10]} Nh6 {[%emt 0:01:28]} 11. b3 {[%emt 0:00:48]} Nf5 {[%emt 0:02:20]} 12. Bb2 {[%emt 0:17:42]} Be7 {[%emt 0:07:32]} 13. g3 {[%emt 0:00:52]} Rc8 {[%emt 0:01:42]} 14. Qc2 {[%emt 0:10:38]} O-O {[%emt 0:05:45]} 15. c5 {[%emt 0:08:36]} b6 {[%emt 0:03:41]} 16. b4 {[%emt 0:00:39]} bxc5 {[%emt 0:03:24]} 17. dxc5 {[%emt 0:08:43]} Qb5 {[%emt 0:12:58]} 18. a3 {[%emt 0:10:33]} a5 {[%emt 0:10:01]} 19. Bc3 {[%emt 0:02:36]} Ra8 {[%emt 0:05:59]} 20. Nb3 {[%emt 0:03:42]} axb4 {[%emt 0:06:11]} 21. axb4 {[%emt 0:00:55]} Qc4 {[%emt 0:01:12]} 22. Na5 {[%emt 0:06:05]} Qb5 {[%emt 0:04:39]} 23. Nb3 {[%emt 0:02:15]} Rac8 {[%emt 0:13:26]} 24. Be1 {[%emt 0:04:50]} Rfd8 {[%emt 0:03:41]} 25. Kg2 {[%emt 0:04:33]} Bf8 {[%emt 0:04:05]} 26. Nbd4 {[%emt 0:01:27]} Nxd4 {[%emt 0:00:05]} 27. Nxd4 {[%emt 0:00:06]} Qc4 {[%emt 0:00:42]} 28. Qxc4 {[%emt 0:00:25]} dxc4 {[%emt 0:00:04]} 29. Bc3 {[%emt 0:00:12]} Nxe5 {[%emt 0:00:10]} 30. Nxe6 {[%emt 0:05:59]} fxe6 {[%emt 0:03:16]} 31. Bxe5 {[%emt 0:00:04]} Rd3 {[%emt 0:02:27]} 32. Rac1 {[%emt 0:00:47]} Ra8 {[%emt 0:00:45]} 33. Rxc4 {[%emt 0:00:35]} Ra2 {[%emt 0:00:13]} 34. Re1 {[%emt 0:04:18]} Rdd2 {[%emt 0:00:28]} 35. Rf4 {[%emt 0:00:50]} Re2 {[%emt 0:00:28]} 36. Ra1 {[%emt 0:01:24]} Be7 {[%emt 0:01:19]} 37. Rxa2 {[%emt 0:01:20]} Rxa2 {[%emt 0:00:04]} 38. Rd4 {[%emt 0:00:58]} Ra7 {[%emt 0:00:32]} 39. Kf3 {[%emt 0:01:17]} Kf7 {[%emt 0:00:04]} 40. Ke2 {[%emt 0:00:00]} Bf6 {[%emt 0:00:00]} 41. Bxf6 {[%emt 0:04:28]} gxf6 {[%emt 0:04:56]} 42. Kd3 {[%emt 0:08:10]} Ke7 {[%emt 0:02:16]} 43. Rd6 {[%emt 0:00:19]} Rc7 {[%emt 0:00:23]} 44. Kc4 {[%emt 0:00:12]} Rc8 {[%emt 0:00:04]} 45. b5 {[%emt 0:00:41]} cxb5+ {[%emt 0:00:23]} 46. Kxb5 {[%emt 0:00:07]} e5 {[%emt 0:00:24]} 47. Rd2 {[%emt 0:05:42]} Rb8+ {[%emt 0:00:40]} 48. Ka6 {[%emt 0:00:15]} Rc8 {[%emt 0:00:27]} 49. Kb6 {[%emt 0:00:11]} Rb8+ {[%emt 0:00:04]} 50. Kc7 {[%emt 0:00:04]} Rb3 {[%emt 0:00:04]} 51. c6 {[%emt 0:00:44]} e4 {[%emt 0:00:24]} 52. Kc8 {[%emt 0:00:42]} Rc3 {[%emt 0:00:11]} 53. c7 {[%emt 0:00:06]} Rc5 {[%emt 0:00:13]} 54. Kb7 {[%emt 0:00:22]} 1-0

[Event "FIDE WYCC Open U14 2023"]
[Site "Montesilvano"]
[Date "2023.11.20"]
[Round "7.13"]
[White "Fan, Jingyi"]
[Black "Balint, Peter"]
[Result "*"]
[ECO "A46"]
[WhiteElo "2035"]
[BlackElo "2256"]
[Annotator "RC"]
[PlyCount "67"]
[EventDate "2023.11.13"]
[EventType "swiss"]
[EventCountry "ITA"]
[SourceTitle "playchess.com"]
[Source "ChessBase"]
[SourceQuality "1"]
[TimeControl "40/5400+30:1800+30"]

1. d4 {[%emt 0:00:04]} Nf6 {[%emt 0:00:06]} 2. Nf3 {[%emt 0:00:07]} e6 {[%emt 0:00:03]} 3. Bf4 {[%emt 0:00:07]} Be7 {[%emt 0:00:05]} 4. h3 {[%emt 0:00:51]} b6 {[%emt 0:01:13]} 5. e3 {[%emt 0:00:25]} Bb7 {[%emt 0:01:00]} 6. Bd3 {[%emt 0:01:33]} d6 {[%emt 0:01:47]} 7. O-O {[%emt 0:01:28]} Nbd7 {[%emt 0:00:34]} 8. Nbd2 {[%emt 0:04:05]} O-O {[%emt 0:03:34]} 9. Re1 {[%emt 0:03:05]} Re8 {[%emt 0:10:40]} 10. e4 {[%emt 0:04:38]} h6 {[%emt 0:02:47]} 11. Bh2 {[%emt 0:01:02]} Bf8 {[%emt 0:04:08]} 12. e5 {[%emt 0:01:50]} dxe5 {[%emt 0:01:54]} 13. dxe5 {[%emt 0:00:07]} Nd5 {[%emt 0:01:29]} 14. c4 {[%emt 0:12:27]} Ne7 {[%emt 0:05:01]} 15. Qe2 {[%emt 0:01:36]} Nf5 {[%emt 0:03:50]} 16. Rad1 {[%emt 0:02:29]} Qc8 {[%emt 0:04:18]} 17. Bb1 {[%emt 0:08:09]} Bc6 {[%emt 0:04:06]} 18. Nb3 {[%emt 0:12:55]} Bb4 {[%emt 0:04:53]} 19. Nfd4 {[%emt 0:03:17]} Nxd4 {[%emt 0:07:29]} 20. Nxd4 {[%emt 0:00:08]} Ba4 {[%emt 0:01:43]} 21. Rf1 {[%emt 0:17:08]} Bxd1 {[%emt 0:04:18]} 22. Rxd1 {[%emt 0:00:05]} Bc5 {[%emt 0:01:57]} 23. Nc6 {[%emt 0:00:54]} Nb8 {[%emt 0:11:16]} 24. Be4 {[%emt 0:03:43]} Rf8 {[%emt 0:01:20]} 25. Bf4 {[%emt 0:05:10]} Nxc6 {[%emt 0:01:24]} 26. Bxc6 {[%emt 0:00:07]} Rb8 {[%emt 0:00:33]} 27. Rd3 {[%emt 0:04:23]} Be7 {[%emt 0:09:29]} 28. Bxh6 {[%emt 0:03:41]} g6 {[%emt 0:06:46]} 29. Rd7 {[%emt 0:01:42]} Kh7 {[%emt 0:01:44]} 30. Qe3 {[%emt 0:02:18]} Qe8 {[%emt 0:03:04]} 31. Rxc7 {[%emt 0:03:11]} Qd8 {[%emt 0:00:09]} 32. Rd7 {[%emt 0:00:18]} Qe8 {[%emt 0:00:03]} 33. Bxf8 {[%emt 0:01:09]} Qxf8 {[%emt 0:00:07]} 34. Rxa7 {[%emt 0:00:28]} *

[Event "FIDE WYCC Open U14 2023"]
[Site "Montesilvano"]
[Date "2023.11.20"]
[Round "7.14"]
[White "Juhanak, Daniel"]
[Black "Akhmedov, David"]
[Result "*"]
[ECO "B34"]
[WhiteElo "1984"]
[BlackElo "2240"]
[Annotator "RC"]
[PlyCount "69"]
[EventDate "2023.11.13"]
[EventType "swiss"]
[EventCountry "ITA"]
[SourceTitle "playchess.com"]
[Source "ChessBase"]
[SourceQuality "1"]
[TimeControl "40/5400+30:1800+30"]

1. e4 {[%emt 0:00:04]} c5 {[%emt 0:00:06]} 2. Nf3 {[%emt 0:00:07]} Nc6 {[%emt 0:02:52]} 3. d4 {[%emt 0:00:25]} cxd4 {[%emt 0:00:03]} 4. Nxd4 {[%emt 0:00:12]} Nf6 {[%emt 0:00:12]} 5. Nc3 {[%emt 0:00:13]} e5 {[%emt 0:07:20]} 6. Nf5 {[%emt 0:00:39]} d5 {[%emt 0:06:41]} 7. exd5 {[%emt 0:00:16]} Bxf5 {[%emt 0:01:49]} 8. dxc6 {[%emt 0:00:08]} Qxd1+ {[%emt 0:01:11]} 9. Nxd1 {[%emt 0:00:09]} bxc6 {[%emt 0:00:20]} 10. Ne3 {[%emt 0:02:08]} Be6 {[%emt 0:01:50]} 11. Nc4 {[%emt 0:13:23]} Nd7 {[%emt 0:13:39]} 12. Be3 {[%emt 0:03:51]} f6 {[%emt 0:11:09]} 13. O-O-O {[%emt 0:08:35]} Bc5 {[%emt 0:01:21]} 14. Bxc5 {[%emt 0:12:43]} Nxc5 {[%emt 0:00:25]} 15. Nd6+ {[%emt 0:03:32]} Ke7 {[%emt 0:05:45]} 16. Bc4 {[%emt 0:05:34]} Rhd8 {[%emt 0:08:07]} 17. Bxe6 {[%emt 0:00:28]} Rxd6 {[%emt 0:03:14]} 18. Rxd6 {[%emt 0:01:26]} Kxd6 {[%emt 0:00:02]} 19. Bc4 {[%emt 0:02:20]} a5 {[%emt 0:04:43]} 20. Rd1+ {[%emt 0:02:53]} Ke7 {[%emt 0:02:42]} 21. c3 {[%emt 0:07:39]} h5 {[%emt 0:03:29]} 22. Kc2 {[%emt 0:08:03]} g5 {[%emt 0:02:27]} 23. Bd3 {[%emt 0:06:15]} Ke6 {[%emt 0:07:23]} 24. Bc4+ {[%emt 0:00:18]} Ke7 {[%emt 0:00:17]} 25. Bd3 {[%emt 0:00:05]} Nb7 {[%emt 0:02:50]} 26. Be4 {[%emt 0:04:18]} Rc8 {[%emt 0:01:06]} 27. Bf5 {[%emt 0:01:42]} Rc7 {[%emt 0:00:33]} 28. h4 {[%emt 0:06:23]} Nd6 {[%emt 0:00:34]} 29. Bg6 {[%emt 0:00:25]} gxh4 {[%emt 0:00:39]} 30. Bxh5 {[%emt 0:04:52]} Ke6 {[%emt 0:01:27]} 31. g3 {[%emt 0:02:40]} hxg3 {[%emt 0:02:34]} 32. fxg3 {[%emt 0:00:01]} f5 {[%emt 0:02:03]} 33. g4 {[%emt 0:01:18]} f4 {[%emt 0:00:07]} 34. b3 {[%emt 0:01:24]} e4 {[%emt 0:02:35]} 35. c4 {[%emt 0:01:09]} *